[Event "Live Chess"]
[Site "Chess.com"]
[Date "2023.09.16"]
[Round "-"]
[White "KiwiDoFbi"]
[Black "z_anne_ari"]
[Result "1-0"]
[WhiteElo "1263"]
[BlackElo "1277"]
[TimeControl "900+5"]
[EndTime "6:28:54 PDT"]
[Termination "KiwiDoFbi venceu por desistência"]

1. e4 {[%clk 0:15:03.7]} 1... d5 {[%clk 0:15:01.7]} 2. exd5 {[%clk 0:15:06.8]}
2... Qxd5 {[%clk 0:15:05.4]} 3. Nc3 {[%clk 0:15:11.4]} 3... Qa5 {[%clk
0:15:09.1]} 4. Nf3 {[%clk 0:15:08.9]} 4... Nf6 {[%clk 0:15:13.1]} 5. d4 {[%clk
0:15:11.2]} 5... Bg4 {[%clk 0:15:16.4]} 6. Bd2 {[%clk 0:15:07.3]} 6... c6 {[%clk
0:15:19.9]} 7. h3 {[%clk 0:15:06.8]} 7... Bh5 {[%clk 0:15:23.2]} 8. Bc4 {[%clk
0:15:10.7]} 8... Qc7 {[%clk 0:15:25.3]} 9. O-O {[%clk 0:15:09.9]} 9... e6 {[%clk
0:15:24.6]} 10. Re1 {[%clk 0:15:08.6]} 10... Be7 {[%clk 0:15:21.2]} 11. Bg5
{[%clk 0:14:55.8]} 11... O-O {[%clk 0:15:18.5]} 12. Bxf6 {[%clk 0:14:54.6]}
12... Bxf6 {[%clk 0:15:21.8]} 13. Ne4 {[%clk 0:14:59.1]} 13... Qf4 {[%clk
0:15:05.3]} 14. Nxf6+ {[%clk 0:14:49.6]} 14... Qxf6 {[%clk 0:15:06.1]} 15. Re3
{[%clk 0:14:44.4]} 15... Nd7 {[%clk 0:15:04.7]} 16. Be2 {[%clk 0:14:41.2]} 16...
Bg6 {[%clk 0:15:02.5]} 17. Ne5 {[%clk 0:14:35.1]} 17... Nxe5 {[%clk 0:15:03.8]}
18. dxe5 {[%clk 0:14:39.7]} 18... Qh4 {[%clk 0:15:04.5]} 19. Bd3 {[%clk
0:14:37.6]} 19... Rad8 {[%clk 0:15:01.2]} 20. Qe2 {[%clk 0:13:47.8]} 20... Bh5
{[%clk 0:15:01.5]} 21. Qe1 {[%clk 0:13:41.7]} 21... Bg6 {[%clk 0:14:50.3]} 22.
Kh2 {[%clk 0:12:56.2]} 22... Bxd3 {[%clk 0:14:28.9]} 23. Rxd3 {[%clk 0:12:47]}
23... f6 {[%clk 0:14:25.7]} 24. g3 {[%clk 0:12:37.5]} 24... Qh6 {[%clk
0:14:02.9]} 25. exf6 {[%clk 0:12:25.5]} 25... Qxf6 {[%clk 0:14:03]} 26. Rxd8
{[%clk 0:12:07.6]} 26... Rxd8 {[%clk 0:14:02.2]} 27. Kg2 {[%clk 0:12:06.6]}
27... Qxb2 {[%clk 0:14:04.8]} 28. Qxe6+ {[%clk 0:12:06.5]} 28... Kh8 {[%clk
0:14:04]} 29. Re1 {[%clk 0:12:10.3]} 29... h6 {[%clk 0:13:51]} 30. Qe7 {[%clk
0:11:48.1]} 30... Qd4 {[%clk 0:13:42.4]} 31. Qxb7 {[%clk 0:11:38.5]} 31... Qd5+
{[%clk 0:13:37.2]} 32. Kg1 {[%clk 0:11:27.7]} 32... Qd2 {[%clk 0:13:27.1]} 33.
Rf1 {[%clk 0:10:59.3]} 33... Qxc2 {[%clk 0:13:20.5]} 34. Qxa7 {[%clk 0:10:49.8]}
34... c5 {[%clk 0:13:21.2]} 35. Qa6 {[%clk 0:09:35.4]} 35... Qf5 {[%clk
0:13:07]} 36. Kh2 {[%clk 0:09:26.6]} 36... Rd2 {[%clk 0:12:51.3]} 37. Kg2 {[%clk
0:08:51.8]} 37... Qe4+ {[%clk 0:12:27.5]} 38. Kg1 {[%clk 0:08:52.9]} 38... c4
{[%clk 0:12:21.4]} 39. Qa3 {[%clk 0:07:04.4]} 39... Rd3 {[%clk 0:11:54.9]} 40.
Qb4 {[%clk 0:06:12.3]} 40... Qd4 {[%clk 0:11:35.3]} 41. Qf8+ {[%clk 0:06:05.5]}
41... Kh7 {[%clk 0:11:36.6]} 42. Qf5+ {[%clk 0:06:09]} 42... Kg8 {[%clk
0:11:39.9]} 43. Qe6+ {[%clk 0:05:50.2]} 43... Kf8 {[%clk 0:11:38.2]} 44. Qc8+
{[%clk 0:05:40.2]} 44... Qd8 {[%clk 0:11:40.8]} 45. Qxd8+ {[%clk 0:05:44.1]}
45... Rxd8 {[%clk 0:11:44.1]} 46. Rc1 {[%clk 0:05:48.6]} 46... Rd4 {[%clk
0:11:44]} 47. Kf1 {[%clk 0:05:50.1]} 47... Ke7 {[%clk 0:11:48.3]} 48. Ke2 {[%clk
0:05:54.2]} 48... Kd6 {[%clk 0:11:52.5]} 49. Ke3 {[%clk 0:05:58.2]} 49... Kd5
{[%clk 0:11:53.9]} 50. a4 {[%clk 0:05:59.4]} 50... Rd3+ {[%clk 0:11:47]} 51. Kf4
{[%clk 0:05:49]} 51... Ra3 {[%clk 0:11:47.3]} 52. Kf5 {[%clk 0:05:52.4]} 52...
Rxa4 {[%clk 0:11:45.7]} 53. Rd1+ {[%clk 0:05:52.7]} 53... Kc5 {[%clk 0:11:48.2]}
54. Kg6 {[%clk 0:05:55.6]} 54... c3 {[%clk 0:11:50]} 55. Kxg7 {[%clk 0:05:54.7]}
55... c2 {[%clk 0:11:53.4]} 56. Rc1 {[%clk 0:05:58.8]} 56... Ra2 {[%clk
0:11:50.2]} 57. Kxh6 {[%clk 0:06:00.6]} 57... Kd4 {[%clk 0:11:54.3]} 58. f4
{[%clk 0:06:04.8]} 58... Kc3 {[%clk 0:11:58.6]} 59. f5 {[%clk 0:06:08.3]} 59...
Kd2 {[%clk 0:12:03.1]} 60. Rxc2+ {[%clk 0:06:11.6]} 60... Rxc2 {[%clk 0:12:06]}
61. f6 {[%clk 0:06:16.1]} 61... Rc6 {[%clk 0:12:04.6]} 62. Kg7 {[%clk 0:06:20]}
62... Ke3 {[%clk 0:12:07.7]} 63. f7 {[%clk 0:06:24.4]} 63... Rc8 {[%clk
0:12:08.8]} 64. f8=Q {[%clk 0:06:26.2]} 64... Rxf8 {[%clk 0:12:11.5]} 65. Kxf8
{[%clk 0:06:29.6]} 65... Kf3 {[%clk 0:12:15.6]} 66. h4 {[%clk 0:06:33.7]} 66...
Kxg3 {[%clk 0:12:19.1]} 67. h5 {[%clk 0:06:38.4]} 67... Kg4 {[%clk 0:12:21.2]}
68. h6 {[%clk 0:06:42.7]} 68... Kg5 {[%clk 0:12:25.8]} 69. h7 {[%clk 0:06:46.9]}
69... Kg6 {[%clk 0:12:30.3]} 70. h8=Q {[%clk 0:06:50.8]} 70... Kf5 {[%clk
0:12:32.3]} 71. Qh6 {[%clk 0:06:54]} 1-0

[Event "Live Chess"]
[Site "Chess.com"]
[Date "2023.09.16"]
[Round "-"]
[White "Torugomilho11"]
[Black "KBT2007"]
[Result "0-1"]
[WhiteElo "1135"]
[BlackElo "1892"]
[TimeControl "900+5"]
[EndTime "6:29:18 PDT"]
[Termination "KBT2007 venceu por desistência"]

1. e4 {[%clk 0:15:03.3]} 1... c6 {[%clk 0:15:02.9]} 2. d4 {[%clk 0:15:05.9]}
2... d5 {[%clk 0:15:06.6]} 3. exd5 {[%clk 0:15:07.4]} 3... cxd5 {[%clk
0:15:09.9]} 4. Bd3 {[%clk 0:15:12.1]} 4... Nf6 {[%clk 0:15:13.6]} 5. Nf3 {[%clk
0:15:12.6]} 5... Nc6 {[%clk 0:15:14.9]} 6. Bg5 {[%clk 0:15:15.2]} 6... Bg4
{[%clk 0:15:14.8]} 7. c3 {[%clk 0:15:12.9]} 7... e6 {[%clk 0:15:14.8]} 8. Nbd2
{[%clk 0:15:11.7]} 8... Be7 {[%clk 0:15:16.1]} 9. Bxf6 {[%clk 0:15:12.8]} 9...
Bxf6 {[%clk 0:15:17.5]} 10. Qb3 {[%clk 0:15:14.6]} 10... Bxf3 {[%clk 0:15:17.6]}
11. Nxf3 {[%clk 0:15:17.7]} 11... Qc7 {[%clk 0:15:16.4]} 12. O-O {[%clk
0:15:10.2]} 12... O-O {[%clk 0:15:16.9]} 13. Qc2 {[%clk 0:15:11.7]} 13... h6
{[%clk 0:15:17.3]} 14. Rfe1 {[%clk 0:14:40.2]} 14... Rac8 {[%clk 0:15:17.7]} 15.
Rad1 {[%clk 0:14:15.5]} 15... Kh8 {[%clk 0:15:02.2]} 16. Re2 {[%clk 0:13:16.9]}
16... Qb6 {[%clk 0:14:49.1]} 17. Rde1 {[%clk 0:12:46.5]} 17... Bxd4 {[%clk
0:14:32.7]} 18. Nxd4 {[%clk 0:12:32.7]} 18... Nxd4 {[%clk 0:14:36.6]} 19. Qd2
{[%clk 0:12:33.3]} 19... Nxe2+ {[%clk 0:14:39.4]} 20. Rxe2 {[%clk 0:12:38.2]}
20... Qa5 {[%clk 0:14:31]} 21. a3 {[%clk 0:12:32.7]} 21... Rc7 {[%clk 0:14:17]}
22. Qf4 {[%clk 0:12:29.8]} 22... Rfc8 {[%clk 0:14:04.3]} 23. Qe3 {[%clk
0:11:47.7]} 23... Qb6 {[%clk 0:14:01.6]} 24. Qxb6 {[%clk 0:11:21.2]} 24... axb6
{[%clk 0:14:04.1]} 25. h3 {[%clk 0:11:08.5]} 25... d4 {[%clk 0:14:01.9]} 26.
cxd4 {[%clk 0:10:55.8]} 26... Rc1+ {[%clk 0:13:50.2]} 27. Kh2 {[%clk 0:10:58]}
27... Rd1 {[%clk 0:13:51.5]} 28. Re3 {[%clk 0:10:44.8]} 28... Rd2 {[%clk
0:13:52.9]} 29. Kg3 {[%clk 0:10:41.3]} 29... Rxb2 {[%clk 0:13:50.5]} 30. Rf3
{[%clk 0:10:30.2]} 30... Kg8 {[%clk 0:13:37.8]} 31. a4 {[%clk 0:10:08.1]} 31...
Kf8 {[%clk 0:13:34.4]} 32. Bg6 {[%clk 0:09:47.1]} 32... f5 {[%clk 0:13:26.2]}
33. d5 {[%clk 0:09:38.1]} 33... Rbc2 {[%clk 0:12:43.3]} 34. dxe6 {[%clk
0:09:36.4]} 34... R2c3 {[%clk 0:12:46.8]} 35. Bxf5 {[%clk 0:09:19.9]} 35...
Rxf3+ {[%clk 0:12:49.2]} 36. Kxf3 {[%clk 0:09:24.2]} 36... Ke7 {[%clk
0:12:53.2]} 37. Ke3 {[%clk 0:09:10.5]} 37... Rc4 {[%clk 0:12:52.8]} 38. Kd3
{[%clk 0:09:07.3]} 38... Rxa4 {[%clk 0:12:51.8]} 39. f3 {[%clk 0:08:47.8]} 39...
Ra5 {[%clk 0:12:45.9]} 40. Bg4 {[%clk 0:08:48.6]} 40... h5 {[%clk 0:12:45]} 0-1

[Event "Live Chess"]
[Site "Chess.com"]
[Date "2023.09.16"]
[Round "-"]
[White "Riquelme_Leonardo"]
[Black "andre2873"]
[Result "1-0"]
[WhiteElo "1706"]
[BlackElo "634"]
[TimeControl "900+5"]
[EndTime "6:29:19 PDT"]
[Termination "Riquelme_Leonardo venceu por xeque-mate"]

1. e4 {[%clk 0:15:03.6]} 1... e5 {[%clk 0:15:02.8]} 2. Nf3 {[%clk 0:15:07.7]}
2... Nc6 {[%clk 0:15:05.5]} 3. Bc4 {[%clk 0:15:11.8]} 3... Bd6 {[%clk
0:15:02.4]} 4. O-O {[%clk 0:15:14.4]} 4... Nge7 {[%clk 0:15:06.3]} 5. Ng5 {[%clk
0:15:15.8]} 5... O-O {[%clk 0:15:04.5]} 6. Nxf7 {[%clk 0:15:20]} 6... Rxf7
{[%clk 0:15:08]} 7. Bxf7+ {[%clk 0:15:24.9]} 7... Kxf7 {[%clk 0:15:10.9]} 8. Nc3
{[%clk 0:15:28.6]} 8... Ng6 {[%clk 0:15:04]} 9. d3 {[%clk 0:15:31]} 9... Bc5
{[%clk 0:15:01.9]} 10. Be3 {[%clk 0:15:31.6]} 10... d6 {[%clk 0:15:05]} 11. Bxc5
{[%clk 0:15:35.5]} 11... dxc5 {[%clk 0:15:08.9]} 12. Nd5 {[%clk 0:15:36]} 12...
Nd4 {[%clk 0:14:51.6]} 13. c3 {[%clk 0:15:35.9]} 13... Ne6 {[%clk 0:14:47]} 14.
Ne3 {[%clk 0:15:36.8]} 14... Nef4 {[%clk 0:14:29.1]} 15. g3 {[%clk 0:15:35.2]}
15... Ne6 {[%clk 0:14:26]} 16. Qf3+ {[%clk 0:15:33.8]} 16... Kg8 {[%clk
0:14:25.4]} 17. a3 {[%clk 0:15:31.9]} 17... c6 {[%clk 0:14:27.6]} 18. Rfd1
{[%clk 0:15:34.5]} 18... Ne7 {[%clk 0:14:23.6]} 19. b4 {[%clk 0:15:38.1]} 19...
cxb4 {[%clk 0:14:24.3]} 20. axb4 {[%clk 0:15:43]} 20... b5 {[%clk 0:14:28.6]}
21. d4 {[%clk 0:15:45.1]} 21... a5 {[%clk 0:14:32.2]} 22. bxa5 {[%clk
0:15:46.9]} 22... Rxa5 {[%clk 0:14:36.2]} 23. Rxa5 {[%clk 0:15:50.8]} 23... Qxa5
{[%clk 0:14:40.2]} 24. dxe5 {[%clk 0:15:53.7]} 24... c5 {[%clk 0:14:21.7]} 25.
Nf5 {[%clk 0:15:54.9]} 25... Qa7 {[%clk 0:13:08.1]} 26. Nxe7+ {[%clk 0:15:49.7]}
26... Qxe7 {[%clk 0:13:10.7]} 27. Qe3 {[%clk 0:15:47.9]} 27... g6 {[%clk
0:12:52.9]} 28. f4 {[%clk 0:15:51.2]} 28... Qf8 {[%clk 0:12:29.5]} 29. Kg2
{[%clk 0:15:44.3]} 29... h5 {[%clk 0:12:30.6]} 30. Rf1 {[%clk 0:15:41.2]} 30...
Ng7 {[%clk 0:12:22.9]} 31. Qd3 {[%clk 0:15:38.1]} 31... c4 {[%clk 0:12:19.5]}
32. Qd5+ {[%clk 0:15:41.1]} 32... Be6 {[%clk 0:12:20.3]} 33. Qxb5 {[%clk
0:15:44.6]} 33... Kh7 {[%clk 0:11:59.7]} 34. Qb1 {[%clk 0:15:30.8]} 34... Kh6
{[%clk 0:11:48.5]} 35. Qc1 {[%clk 0:15:22.7]} 35... Kh7 {[%clk 0:11:43.9]} 36.
Qe3 {[%clk 0:15:26.3]} 36... Kh8 {[%clk 0:11:18.2]} 37. f5 {[%clk 0:15:26.5]}
37... gxf5 {[%clk 0:11:21.1]} 38. Qh6+ {[%clk 0:15:29.1]} 38... Kg8 {[%clk
0:11:20.3]} 39. exf5 {[%clk 0:15:32.6]} 39... Nxf5 {[%clk 0:11:22.1]} 40. Qg6+
{[%clk 0:15:29.1]} 40... Ng7 {[%clk 0:11:24.3]} 41. Rxf8+ {[%clk 0:15:31.2]}
41... Kxf8 {[%clk 0:11:27.4]} 42. Qf6+ {[%clk 0:15:32.4]} 42... Kg8 {[%clk
0:11:30.2]} 43. Kf3 {[%clk 0:15:30.8]} 43... Bd5+ {[%clk 0:11:20.8]} 44. Kf4
{[%clk 0:15:30.8]} 44... Be6 {[%clk 0:11:24.7]} 45. Qd8+ {[%clk 0:15:29.8]}
45... Kh7 {[%clk 0:11:13.6]} 46. Kg5 {[%clk 0:15:31.2]} 46... Bf5 {[%clk
0:10:56.8]} 47. Qf6 {[%clk 0:15:26.3]} 47... Be6 {[%clk 0:10:15.4]} 48. h4
{[%clk 0:15:22.4]} 48... Bg4 {[%clk 0:10:02.1]} 49. Qh6+ {[%clk 0:15:09.6]}
49... Kg8 {[%clk 0:10:03.9]} 50. Qg6 {[%clk 0:15:04.6]} 50... Kh8 {[%clk
0:09:55]} 51. Kf6 {[%clk 0:15:02.6]} 51... Kg8 {[%clk 0:09:57.2]} 52. Qxg7#
{[%clk 0:15:06.1]} 1-0

[Event "Live Chess"]
[Site "Chess.com"]
[Date "2023.09.16"]
[Round "-"]
[White "Du_Felix"]
[Black "abaakate"]
[Result "1/2-1/2"]
[WhiteElo "1932"]
[BlackElo "1937"]
[TimeControl "900+5"]
[EndTime "6:29:44 PDT"]
[Termination "Partida empatada por acordo"]

1. e4 {[%clk 0:14:58.8]} 1... c5 {[%clk 0:15:03.9]} 2. Nf3 {[%clk 0:14:58.7]}
2... Nc6 {[%clk 0:15:07.6]} 3. d3 {[%clk 0:14:46.8]} 3... d6 {[%clk 0:15:05.8]}
4. g3 {[%clk 0:14:47.8]} 4... Nf6 {[%clk 0:14:52.3]} 5. Bg2 {[%clk 0:14:49.3]}
5... Bg4 {[%clk 0:14:51.9]} 6. O-O {[%clk 0:14:52.8]} 6... Qd7 {[%clk
0:14:50.7]} 7. Re1 {[%clk 0:14:45.1]} 7... g6 {[%clk 0:14:49.6]} 8. Nbd2 {[%clk
0:14:39.5]} 8... Bg7 {[%clk 0:14:48.6]} 9. Nf1 {[%clk 0:14:37.1]} 9... O-O
{[%clk 0:14:39.4]} 10. Ne3 {[%clk 0:14:25.1]} 10... Bh3 {[%clk 0:14:36.6]} 11.
c3 {[%clk 0:13:55.1]} 11... Bxg2 {[%clk 0:14:30.9]} 12. Nxg2 {[%clk 0:13:34.9]}
12... b5 {[%clk 0:14:06.7]} 13. Bf4 {[%clk 0:13:14.9]} 13... b4 {[%clk
0:13:40.7]} 14. Qd2 {[%clk 0:13:13.7]} 14... a5 {[%clk 0:12:39.5]} 15. Bh6
{[%clk 0:12:23.8]} 15... Qh3 {[%clk 0:11:46.4]} 16. Bxg7 {[%clk 0:12:21.1]}
16... Kxg7 {[%clk 0:11:51.3]} 17. Nf4 {[%clk 0:11:47.4]} 17... Qh6 {[%clk
0:11:42.8]} 18. Rad1 {[%clk 0:11:23.2]} 18... Ne5 {[%clk 0:09:55.8]} 19. Nxe5
{[%clk 0:10:35.2]} 19... dxe5 {[%clk 0:09:59.7]} 20. Nd5 {[%clk 0:10:24]} 20...
Qxd2 {[%clk 0:09:16.9]} 21. Rxd2 {[%clk 0:10:26.4]} 21... Nxd5 {[%clk
0:09:19.4]} 22. exd5 {[%clk 0:10:28.8]} 22... f6 {[%clk 0:09:20.9]} 23. d4
{[%clk 0:10:23.1]} 23... cxd4 {[%clk 0:08:57.7]} 24. cxd4 {[%clk 0:10:25.4]}
24... e4 {[%clk 0:08:58.7]} 25. Rxe4 {[%clk 0:10:27.2]} 25... Kf7 {[%clk
0:08:58.9]} 26. Rde2 {[%clk 0:09:16.5]} 26... Ra7 {[%clk 0:08:48.2]} 27. Rc2
{[%clk 0:08:14.8]} 27... Rd8 {[%clk 0:08:32]} 28. Rc5 {[%clk 0:08:14.6]} 28...
a4 {[%clk 0:08:20.8]} 29. Rb5 {[%clk 0:07:47.1]} 29... a3 {[%clk 0:07:14]} 30.
Rxb4 {[%clk 0:07:37.1]} 30... axb2 {[%clk 0:07:17.5]} 31. Rxb2 {[%clk
0:07:39.8]} 31... Rxd5 {[%clk 0:07:19.8]} 32. Rd2 {[%clk 0:07:06.8]} 32... e5
{[%clk 0:07:07.3]} 33. Kf1 {[%clk 0:05:55.1]} 33... Ra4 {[%clk 0:06:49.5]} 34.
Ke2 {[%clk 0:05:52.6]} 34... exd4 {[%clk 0:06:30.1]} 35. Rh4 {[%clk 0:05:27.1]}
35... d3+ {[%clk 0:05:28.2]} 36. Rxd3 {[%clk 0:04:58.9]} 36... Rxa2+ {[%clk
0:05:31.6]} 37. Ke3 {[%clk 0:05:00.8]} 37... Re5+ {[%clk 0:05:08.8]} 38. Kf3
{[%clk 0:03:36.3]} 38... Rf5+ {[%clk 0:05:10.1]} 39. Rf4 {[%clk 0:03:33.5]}
39... Rxf4+ {[%clk 0:05:08.6]} 40. gxf4 {[%clk 0:03:36.5]} 1/2-1/2

[Event "Live Chess"]
[Site "Chess.com"]
[Date "2023.09.16"]
[Round "-"]
[White "migu345"]
[Black "brenin12345"]
[Result "1/2-1/2"]
[WhiteElo "997"]
[BlackElo "767"]
[TimeControl "900+5"]
[EndTime "6:30:04 PDT"]
[Termination "Partida empatada - material insuficiente"]

1. e4 {[%clk 0:15:02.1]} 1... e5 {[%clk 0:15:00.4]} 2. Nf3 {[%clk 0:15:06.3]}
2... Nc6 {[%clk 0:15:02]} 3. Bc4 {[%clk 0:15:09.9]} 3... Nf6 {[%clk 0:15:03.4]}
4. d3 {[%clk 0:15:11.9]} 4... Bc5 {[%clk 0:14:58.2]} 5. Nc3 {[%clk 0:15:15.4]}
5... d6 {[%clk 0:14:38.6]} 6. Na4 {[%clk 0:15:17.2]} 6... Bg4 {[%clk 0:14:06.3]}
7. O-O {[%clk 0:15:08.1]} 7... O-O {[%clk 0:13:53.2]} 8. a3 {[%clk 0:15:08.8]}
8... a6 {[%clk 0:12:57.2]} 9. Nxc5 {[%clk 0:14:55.3]} 9... dxc5 {[%clk
0:12:56.8]} 10. h3 {[%clk 0:14:56.3]} 10... Bxf3 {[%clk 0:12:42.9]} 11. Qxf3
{[%clk 0:14:58.6]} 11... b5 {[%clk 0:12:40.5]} 12. Ba2 {[%clk 0:15:01.1]} 12...
Qd6 {[%clk 0:11:38.6]} 13. Bg5 {[%clk 0:15:00.5]} 13... Nd4 {[%clk 0:11:07.9]}
14. Qd1 {[%clk 0:14:48.7]} 14... h6 {[%clk 0:10:59.5]} 15. Bh4 {[%clk
0:14:47.8]} 15... g5 {[%clk 0:10:10.1]} 16. Bg3 {[%clk 0:13:48.3]} 16... Rae8
{[%clk 0:08:55.8]} 17. f4 {[%clk 0:13:49.7]} 17... gxf4 {[%clk 0:08:17.8]} 18.
Bh4 {[%clk 0:13:50.5]} 18... b4 {[%clk 0:07:49.2]} 19. Bxf6 {[%clk 0:13:53.1]}
19... Qxf6 {[%clk 0:07:48.3]} 20. Qg4+ {[%clk 0:13:55.9]} 20... Qg5 {[%clk
0:07:21.7]} 21. Qxg5+ {[%clk 0:13:36]} 21... hxg5 {[%clk 0:07:21.9]} 22. c3
{[%clk 0:13:32.2]} 22... Ne2+ {[%clk 0:07:04.9]} 23. Kh2 {[%clk 0:13:25.7]}
23... bxc3 {[%clk 0:07:04.4]} 24. bxc3 {[%clk 0:13:23.3]} 24... Nxc3 {[%clk
0:07:05.3]} 25. Bc4 {[%clk 0:13:23.4]} 25... Nb5 {[%clk 0:06:53.2]} 26. Bxb5
{[%clk 0:13:24.8]} 26... axb5 {[%clk 0:06:56.8]} 27. Rab1 {[%clk 0:13:29.1]}
27... c6 {[%clk 0:07:00.2]} 28. Rfc1 {[%clk 0:13:32.5]} 28... Ra8 {[%clk
0:06:46.5]} 29. Rxc5 {[%clk 0:13:35.2]} 29... Rxa3 {[%clk 0:06:47.6]} 30. Rxe5
{[%clk 0:13:38.7]} 30... f6 {[%clk 0:06:35.5]} 31. Re6 {[%clk 0:13:39.6]} 31...
Rxd3 {[%clk 0:06:30.3]} 32. Rxc6 {[%clk 0:13:39.8]} 32... f3 {[%clk 0:06:09.1]}
33. gxf3 {[%clk 0:13:41.9]} 33... Rxf3 {[%clk 0:06:12.6]} 34. Rxb5 {[%clk
0:13:45.6]} 34... Rf4 {[%clk 0:06:04.7]} 35. Re6 {[%clk 0:13:44.9]} 35... Kf7
{[%clk 0:05:52.2]} 36. Rbb6 {[%clk 0:13:44.8]} 36... Re8 {[%clk 0:05:48.9]} 37.
Rxe8 {[%clk 0:13:46.4]} 37... Kxe8 {[%clk 0:05:52.7]} 38. Re6+ {[%clk
0:13:48.8]} 38... Kf7 {[%clk 0:05:53.9]} 39. Ra6 {[%clk 0:13:42.8]} 39... Rxe4
{[%clk 0:05:53.5]} 40. Ra7+ {[%clk 0:13:45.3]} 40... Ke6 {[%clk 0:05:57]} 41.
Ra6+ {[%clk 0:13:49]} 41... Kf5 {[%clk 0:06:00.9]} 42. Kg3 {[%clk 0:13:52.3]}
42... Re6 {[%clk 0:06:02.5]} 43. Ra5+ {[%clk 0:13:55.8]} 43... Re5 {[%clk
0:06:06.3]} 44. Ra4 {[%clk 0:13:57.6]} 44... Re4 {[%clk 0:06:09.1]} 45. Ra3
{[%clk 0:13:59.2]} 45... g4 {[%clk 0:05:52.7]} 46. Ra5+ {[%clk 0:13:59.1]} 46...
Re5 {[%clk 0:05:50]} 47. hxg4+ {[%clk 0:13:53.6]} 47... Kg5 {[%clk 0:05:48.1]}
48. Rxe5+ {[%clk 0:13:22.9]} 48... fxe5 {[%clk 0:05:47.9]} 49. Kf3 {[%clk
0:13:26.7]} 49... Kf6 {[%clk 0:05:39.6]} 50. Ke4 {[%clk 0:13:29.9]} 50... Kg5
{[%clk 0:05:42.5]} 51. Kxe5 {[%clk 0:13:33.1]} 51... Kxg4 {[%clk 0:05:46.8]}
1/2-1/2

[Event "Live Chess"]
[Site "Chess.com"]
[Date "2023.09.16"]
[Round "-"]
[White "vitinho_lawliet"]
[Black "Thiago1451"]
[Result "1-0"]
[WhiteElo "950"]
[BlackElo "565"]
[TimeControl "900+5"]
[EndTime "6:30:09 PDT"]
[Termination "vitinho_lawliet venceu por desistência"]

1. e4 {[%clk 0:14:54.6]} 1... c5 {[%clk 0:15:02.1]} 2. f4 {[%clk 0:14:52.5]}
2... Nc6 {[%clk 0:15:02.2]} 3. Nc3 {[%clk 0:14:56.5]} 3... d6 {[%clk 0:15:00.8]}
4. Bb5 {[%clk 0:14:51.2]} 4... Bd7 {[%clk 0:15:03.1]} 5. Bxc6 {[%clk 0:14:53.2]}
5... Bxc6 {[%clk 0:15:07.1]} 6. e5 {[%clk 0:14:52.9]} 6... Bxg2 {[%clk
0:15:08.4]} 7. exd6 {[%clk 0:14:51.7]} 7... Bxh1 {[%clk 0:15:10.9]} 8. Qe2
{[%clk 0:14:54.8]} 8... Qxd6 {[%clk 0:15:09.9]} 9. Nb5 {[%clk 0:14:58.8]} 9...
Qxf4 {[%clk 0:15:07.6]} 10. d3 {[%clk 0:14:55.6]} 10... Qh4+ {[%clk 0:15:10.2]}
11. Kd1 {[%clk 0:14:56.3]} 11... Qf4 {[%clk 0:14:47.3]} 12. Bxf4 {[%clk
0:14:56.3]} 1-0

[Event "Live Chess"]
[Site "Chess.com"]
[Date "2023.09.16"]
[Round "-"]
[White "kslusk"]
[Black "AlphaKaua10"]
[Result "0-1"]
[WhiteElo "778"]
[BlackElo "1186"]
[TimeControl "900+5"]
[EndTime "6:31:05 PDT"]
[Termination "AlphaKaua10 venceu por desistência"]

1. e4 {[%clk 0:15:02.8]} 1... c5 {[%clk 0:15:03.7]} 2. Nf3 {[%clk 0:15:06.4]}
2... g6 {[%clk 0:15:07.1]} 3. d4 {[%clk 0:15:09.1]} 3... cxd4 {[%clk 0:15:10.6]}
4. Nxd4 {[%clk 0:15:13.3]} 4... Bg7 {[%clk 0:15:14.4]} 5. Nc3 {[%clk 0:15:17.5]}
5... Qb6 {[%clk 0:15:15.1]} 6. Nb3 {[%clk 0:15:13]} 6... Nf6 {[%clk 0:15:17.8]}
7. Bd3 {[%clk 0:15:06.3]} 7... e6 {[%clk 0:15:15.2]} 8. Be3 {[%clk 0:15:04.1]}
8... Qc7 {[%clk 0:15:13.6]} 9. Nb5 {[%clk 0:15:00]} 9... Qc6 {[%clk 0:15:07.9]}
10. N3d4 {[%clk 0:14:55]} 10... Qb6 {[%clk 0:14:49.4]} 11. Nf5 {[%clk 0:14:43]}
11... Qa5+ {[%clk 0:14:48.2]} 12. Bd2 {[%clk 0:14:38.5]} 12... Qb6 {[%clk
0:14:43.1]} 13. Nfd6+ {[%clk 0:14:14.9]} 13... Ke7 {[%clk 0:14:39.8]} 14. Nxc8+
{[%clk 0:13:58.9]} 14... Rxc8 {[%clk 0:14:41.7]} 15. O-O {[%clk 0:13:37.7]}
15... a6 {[%clk 0:14:36.8]} 16. Bb4+ {[%clk 0:12:57.3]} 16... Ke8 {[%clk
0:14:32.3]} 17. Nd6+ {[%clk 0:12:57.5]} 17... Kd8 {[%clk 0:14:31]} 18. Nxc8
{[%clk 0:12:59.1]} 18... Kxc8 {[%clk 0:14:35.9]} 19. Qd2 {[%clk 0:12:57.2]}
19... Nc6 {[%clk 0:14:29.1]} 20. Bc3 {[%clk 0:12:48.2]} 20... Kd8 {[%clk
0:14:18.7]} 21. a4 {[%clk 0:12:37.9]} 21... Ke8 {[%clk 0:14:14]} 22. Ra3 {[%clk
0:12:30.3]} 22... Kf8 {[%clk 0:14:15.4]} 23. Rb3 {[%clk 0:12:30.5]} 23... Qc7
{[%clk 0:14:16.1]} 24. Bxf6 {[%clk 0:11:19.3]} 24... Bxf6 {[%clk 0:14:09.2]} 25.
f4 {[%clk 0:11:18.7]} 25... Nd4 {[%clk 0:14:07]} 26. Rc3 {[%clk 0:11:17.5]}
26... Qb6 {[%clk 0:14:07.9]} 27. e5 {[%clk 0:11:10.5]} 27... Nf3+ {[%clk
0:14:11.8]} 28. Kh1 {[%clk 0:11:08.6]} 28... Nxd2 {[%clk 0:14:15.9]} 0-1

[Event "Live Chess"]
[Site "Chess.com"]
[Date "2023.09.16"]
[Round "-"]
[White "Mozart5501"]
[Black "augustodemoraisrocha"]
[Result "1-0"]
[WhiteElo "1795"]
[BlackElo "1466"]
[TimeControl "900+5"]
[EndTime "6:31:38 PDT"]
[Termination "Mozart5501 venceu por xeque-mate"]

1. e4 {[%clk 0:14:58.2]} 1... e5 {[%clk 0:15:03.5]} 2. Nf3 {[%clk 0:15:02.1]}
2... Nc6 {[%clk 0:15:08]} 3. d4 {[%clk 0:15:06.3]} 3... exd4 {[%clk 0:15:10.8]}
4. Bc4 {[%clk 0:15:10.4]} 4... Nf6 {[%clk 0:15:09.8]} 5. e5 {[%clk 0:15:13.4]}
5... Qe7 {[%clk 0:15:09.6]} 6. O-O {[%clk 0:15:15.4]} 6... Ng8 {[%clk
0:15:02.1]} 7. Re1 {[%clk 0:15:10]} 7... Qc5 {[%clk 0:14:51.3]} 8. Bb3 {[%clk
0:15:02.6]} 8... Nge7 {[%clk 0:14:43.8]} 9. Ng5 {[%clk 0:15:01.2]} 9... Nd8
{[%clk 0:14:29.9]} 10. Qf3 {[%clk 0:14:45.7]} 10... d6 {[%clk 0:13:43.3]} 11.
Nxf7 {[%clk 0:14:35.7]} 11... Nxf7 {[%clk 0:13:28.2]} 12. Qxf7+ {[%clk
0:14:40.2]} 12... Kd8 {[%clk 0:13:30.9]} 13. exd6 {[%clk 0:14:36.6]} 13... Qxd6
{[%clk 0:13:30.5]} 14. Bg5 {[%clk 0:14:29]} 14... Bd7 {[%clk 0:13:04.1]} 15. Nd2
{[%clk 0:14:27.8]} 15... h6 {[%clk 0:12:48.5]} 16. Bxe7+ {[%clk 0:14:17.6]}
16... Bxe7 {[%clk 0:12:50.4]} 17. Nc4 {[%clk 0:14:08.1]} 17... Qf6 {[%clk
0:12:41.7]} 18. Ne5 {[%clk 0:14:06.5]} 18... Bd6 {[%clk 0:12:25.9]} 19. Qxd7#
{[%clk 0:14:07.7]} 1-0